bitfinex/quotes_ETHUSD_20241225
["timestamp","ask_amount","ask_price","bid_price","bid_amount"]
[1735162460415,2.31387,3457.4,3457.3,1.20907075]
[1735162460578,2.31387,3457.4,3457.3,36.20907075]
[1735162461209,2.31387,3457.4,3457.3,35.0]
[1735162461392,2.31407,3457.1,3457.0,1.20907075]
[1735162461763,2.31407,3457.1,3457.0,36.20907075]
[1735162462621,2.31407,3457.1,3457.0,35.0]
[1735162466531,3.10097,3457.1,3457.0,35.0]
[1735162466837,3.642456,3457.1,3457.0,35.0]
[1735162467387,2.31427,3456.9,3456.2,0.8248]
[1735162467801,3.10097,3457.1,3456.6,35.0]
[1735162468124,0.58118163,3457.5,3456.6,35.0]
[1735162468125,2.31428,3456.8,3456.6,35.0]
[1735162468330,2.31403,3457.2,3456.7,0.8248]
[1735162468536,2.31403,3457.2,3456.7,3.67108631]
[1735162468886,2.31409,3457.1,3456.7,3.67108631]
[1735162469091,2.31409,3457.1,3456.7,0.8248]
[1735162470241,2.31414,3457.0,3456.7,0.8248]
[1735162470555,0.759,3457.4,3456.6,35.0]
[1735162470955,2.31434,3456.7,3456.6,35.0]
[1735162473365,2.31457,3456.4,3455.4,4.20907075]
[1735162473687,2.31484,3456.0,3455.5,0.7959]
[1735162473917,2.31485,3456.0,3455.6,35.0]
[1735162474818,0.759,3456.2,3455.6,35.0]
[1735162475023,0.307355,3456.1,3455.6,35.0]
[1735162475374,0.759,3455.6,3455.0,1.20907075]
[1735162475573,2.31526,3455.4,3455.0,1.20907075]
[1735162475816,0.759,3455.9,3455.1,35.0]
[1735162476017,3.07388,3455.9,3455.1,35.0]
[1735162476182,3.0,3456.4,3455.1,35.40702132]
[1735162476183,2.31486,3456.0,3455.1,35.40702132]
[1735162476390,3.07368,3456.2,3455.2,0.7959]
[1735162476703,3.07368,3456.2,3455.1,35.40702132]
[1735162476704,2.31441,3456.7,3455.4,2.3152]
[1735162476907,2.31441,3456.7,3455.7,0.7959]
[1735162477110,2.31447,3456.5,3456.4,35.0]
[1735162477312,4.10752042,3456.5,3456.4,35.0]
[1735162478177,1.79305042,3456.5,3456.4,35.0]
[1735162478571,2.31435,3456.7,3456.4,35.0]
[1735162481011,2.31435,3456.7,3455.8,0.34693793]
[1735162481206,2.31435,3456.7,3455.9,0.38163173]
[1735162481405,2.31435,3456.7,3456.0,35.0]
[1735162484757,2.31421,3457.0,3456.2,0.8008]
[1735162485126,0.8086,3457.2,3456.3,0.02893097]
[1735162485335,2.31398,3457.3,3456.4,35.0]
[1735162485526,2.31398,3457.3,3456.5,2.84628631]
[1735162485763,2.31382,3457.5,3456.5,5.51976564]
[1735162485964,2.31382,3457.5,3456.6,0.8008]
[1735162486166,2.31366,3457.8,3456.8,2.67347933]
[1735162486468,2.00556223,3457.9,3457.1,4.98754933]
[1735162486469,1.19696223,3457.9,3457.1,4.98754933]
[1735162486628,1.19696223,3457.9,3457.2,0.8008]
[1735162486963,1.19696223,3457.9,3457.4,2.67347933]
[1735162487131,1.19696223,3457.9,3457.5,42.01202793]
[1735162487534,1.19696223,3457.9,3457.6,0.8008]
[1735162488064,1.19696223,3458.7,3457.6,0.8008]
[1735162488211,1.19696223,3458.7,3457.7,35.0]
[1735162488416,1.19696223,3458.7,3457.8,2.84628631]
[1735162489004,1.19696223,3458.7,3457.7,2.67347933]
[1735162489005,1.19696223,3458.7,3457.9,35.0]
[1735162489204,1.19696223,3458.7,3458.0,2.67347933]
[1735162489370,2.31284,3459.0,3457.9,35.0]
[1735162489569,0.8086,3459.3,3457.9,35.0]
[1735162489768,2.31287,3458.9,3457.9,35.0]
[1735162490007,0.8086,3459.3,3458.0,2.84628631]
[1735162490167,2.31274,3459.1,3457.9,35.0]
[1735162490369,2.31274,3459.1,3457.8,0.8008]
[1735162490571,2.31307,3458.6,3457.8,0.8008]
[1735162491083,2.31307,3458.6,3457.0,0.8008]
[1735162491084,2.67347933,3458.2,3457.0,0.8008]
[1735162491265,2.31388,3457.4,3457.0,0.8008]
[1735162491465,2.31395,3457.3,3456.9,1.20907075]
[1735162492298,2.8955068,3457.9,3456.8,2.67347933]
[1735162492603,2.31362,3457.8,3456.8,2.67347933]
[1735162493127,2.31362,3457.8,3456.9,0.55]
[1735162493327,2.31362,3457.8,3456.9,1.18386693]
[1735162496638,2.31368,3457.7,3456.9,1.18386693]
[1735162498945,2.31368,3457.7,3457.0,0.02046135]
[1735162500591,2.31373,3457.7,3457.0,0.02046135]
[1735162501049,7.10257531,3458.5,3457.0,0.02046135]
[1735162501050,1.99086223,3458.5,3457.4,0.8042]
[1735162501229,1.19696223,3458.5,3457.8,0.8042]
[1735162501596,4.7036639,3458.9,3457.9,0.55]
[1735162501597,1.19696223,3458.4,3457.9,0.55]
[1735162502630,1.19696223,3458.4,3458.2,0.8042]
[1735162502893,2.31282,3459.0,3458.2,0.8042]
[1735162503103,1.76662883,3459.3,3458.3,0.34776793]
[1735162503347,2.31282,3459.0,3458.3,0.34776793]
[1735162503644,2.31288,3458.9,3458.2,0.8042]
[1735162504849,2.31265,3459.3,3458.2,0.8042]
[1735162505029,2.3124,3459.7,3458.7,0.55]
[1735162505233,2.3124,3459.7,3458.8,0.8042]
[1735162505948,2.3124,3459.7,3458.9,3.22347933]
[1735162506115,2.3124,3459.7,3459.0,0.40276793]
[1735162506294,2.87721049,3459.7,3459.0,0.40276793]
[1735162506729,2.3124,3459.7,3459.0,0.40276793]
[1735162507046,2.3124,3459.6,3459.0,0.40276793]
[1735162509099,0.7939,3460.3,3459.2,2.67347933]
[1735162509393,0.7939,3460.3,3459.3,1.52252871]
[1735162509745,2.31189,3460.4,3459.5,2.67347933]
[1735162509945,1.19696223,3460.6,3459.5,2.67347933]
[1735162510157,2.31187,3460.4,3459.7,0.831]
[1735162512216,2.31173,3460.6,3459.7,0.831]
[1735162512367,2.31204,3460.2,3459.7,0.831]
[1735162512916,2.31208,3460.1,3459.7,0.831]
[1735162513218,0.36798139,3460.6,3459.7,0.831]
[1735162513381,2.31215,3460.0,3459.7,0.831]
[1735162516065,2.31215,3460.0,3459.2,2.67347933]
[1735162516066,3.14326,3460.0,3459.2,0.8117]
[1735162516303,2.31248,3459.5,3459.2,0.8117]
[1735162516502,3.0,3460.4,3459.2,3.48517933]
[1735162516503,2.3123,3459.8,3459.2,3.48517933]
[1735162516687,2.31215,3460.0,3459.3,35.0]
[1735162516985,2.31215,3460.0,3459.3,37.84628631]
[1735162517823,2.31215,3460.0,3459.4,0.55]
[1735162518128,0.8311,3460.3,3459.4,0.55]
[1735162518308,2.31222,3459.9,3459.3,0.55]
[1735162518506,2.31222,3459.9,3459.6,0.8117]
[1735162520216,2.31207,3460.1,3459.6,0.8117]
[1735162520425,0.58328655,3460.2,3459.6,0.8117]
[1735162520588,2.31214,3460.0,3459.6,0.8117]
[1735162522325,2.31214,3460.0,3459.7,35.0]
[1735162522524,2.31214,3460.0,3459.7,37.84628631]
[1735162522675,2.89529655,3460.2,3459.7,37.84628631]
[1735162523771,2.31201,3460.2,3459.7,37.84628631]
[1735162524023,2.31183,3460.5,3459.8,0.55]
[1735162524225,0.8311,3461.2,3460.0,0.8117]
[1735162524527,2.31154,3460.9,3460.2,0.8117]
[1735162524682,2.31154,3460.9,3460.3,35.0]
[1735162524877,2.31154,3460.9,3460.4,2.84628631]
[1735162525078,2.3112,3461.4,3460.4,2.84628631]
[1735162525296,2.31147,3461.0,3460.2,3.48517933]
[1735162525491,2.31147,3461.0,3460.5,35.0]
[1735162525830,2.31147,3461.0,3460.6,0.8117]
[1735162527041,2.31132,3461.3,3460.6,0.8117]
[1735162527412,2.31102,3461.7,3460.8,2.67347933]
[1735162527630,2.31102,3461.7,3461.0,0.8117]
[1735162528033,0.58682959,3461.7,3461.1,3.22347933]
[1735162528742,0.7581,3462.5,3461.3,0.8023]
[1735162528953,0.7581,3462.5,3461.4,3.39628631]
[1735162529129,2.31067,3462.2,3461.4,0.55]
[1735162529312,2.31074,3462.1,3461.4,3.22347933]
[1735162529525,2.31068,3462.2,3461.5,35.0]
[1735162529715,0.7581,3462.5,3461.5,35.0]
[1735162529716,2.31093,3461.9,3461.5,35.0]
[1735162529902,2.31083,3462.0,3461.5,35.0]
[1735162530247,2.31083,3462.0,3461.6,2.84628631]
[1735162530493,2.31087,3461.9,3461.6,2.84628631]
[1735162533505,2.31087,3461.9,3461.4,0.55]
[1735162533960,2.31087,3461.9,3461.7,35.0]
[1735162535859,2.31087,3461.9,3461.8,0.7631]
[1735162536055,2.31037,3462.7,3461.8,0.7631]
[1735162536207,0.7745,3462.9,3461.9,3.39628631]
[1735162536710,2.31054,3462.4,3461.9,3.39628631]
[1735162537543,2.31061,3462.3,3461.9,3.39628631]
[1735162538529,2.31061,3462.3,3461.9,0.55]
[1735162538949,2.31061,3462.3,3462.0,35.0]
[1735162539880,2.31067,3462.2,3462.0,35.0]
[1735162540037,2.31073,3462.1,3462.0,35.0]
[1735162541340,2.31073,3462.1,3462.0,37.84628631]
[1735162541579,2.31073,3462.1,3462.0,35.0]
[1735162543290,2.31086,3461.9,3461.8,0.7631]
[1735162543588,2.31094,3461.8,3461.5,0.55]
[1735162544256,2.31082,3462.0,3461.6,35.0]
[1735162544456,2.31082,3462.0,3461.7,2.84628631]
[1735162544839,2.31082,3462.0,3461.5,0.55]
[1735162545189,2.31082,3462.0,3461.8,35.0]
[1735162547616,3.09786,3462.6,3461.9,0.7683]
[1735162547617,2.31064,3462.3,3461.9,0.7683]
[1735162547932,3.09763,3462.9,3462.0,0.55]
[1735162548290,2.31061,3462.3,3462.0,0.55]
[1735162548625,2.31061,3462.3,3462.1,35.0]
[1735162548775,2.31061,3462.3,3462.2,2.84628631]
[1735162549337,2.31061,3462.3,3462.2,35.0]
[1735162552158,2.31026,3462.8,3462.2,35.0]
[1735162552358,2.31028,3462.8,3462.2,35.0]
[1735162552563,2.31028,3462.8,3462.3,0.7683]
[1735162554070,2.31034,3462.7,3462.3,0.7683]
[1735162554210,2.31034,3462.7,3462.4,2.84628631]
[1735162554724,0.7874,3463.3,3462.4,2.84628631]
[1735162554922,2.31012,3463.1,3462.4,2.84628631]
[1735162555155,2.30993,3463.4,3462.4,2.87516467]
[1735162555365,2.31015,3463.0,3462.4,2.84628631]
[1735162555656,2.31015,3463.0,3462.5,2.84628631]
[1735162555860,2.31015,3463.0,3462.3,0.7683]
[1735162556159,2.31015,3463.0,3462.6,35.0]
[1735162556359,2.31001,3463.2,3462.6,35.0]
[1735162556543,2.31001,3463.2,3462.8,0.7683]
[1735162558774,2.4836221,3463.7,3463.2,0.7683]
[1735162558978,0.1739421,3463.7,3463.3,0.39917793]
[1735162559180,0.1739421,3463.7,3463.4,35.0]
[1735162559978,2.4836221,3463.7,3463.4,35.0]
[1735162560577,2.4836221,3463.7,3463.5,1.3435]
[1735162560578,0.1739421,3463.7,3463.5,1.3435]
[1735162560797,0.1739421,3463.7,3463.6,4.01697933]
[1735162560999,0.1739421,3463.7,3463.6,39.75859506]
[1735162561387,0.1739421,3463.7,3463.6,42.75859506]
[1735162561554,0.1739421,3463.7,3463.6,45.06832506]
[1735162562295,0.1739421,3463.7,3463.6,42.75859506]
[1735162562495,0.1739421,3463.7,3463.6,45.06832506]
[1735162562697,0.1739421,3463.7,3463.6,40.08511573]
[1735162562852,0.1739421,3463.7,3463.6,37.08511573]
[1735162563585,0.1739421,3463.7,3463.3,0.39917793]
[1735162563586,2.4836021,3463.7,3463.3,0.39917793]
[1735162564101,2.4836021,3463.7,3463.4,35.0]
[1735162565761,2.3098,3463.5,3463.4,35.0]
[1735162568908,2.3098,3463.5,3463.2,3.08252649]
[1735162569280,0.1739421,3463.7,3463.3,0.55]
[1735162569494,0.1739421,3463.7,3463.4,36.18562289]
[1735162569796,0.1739421,3463.7,3463.4,36.15675265]
[1735162570257,0.1739421,3463.7,3463.4,35.36325265]
[1735162570461,2.30974,3463.6,3463.4,35.0]
[1735162571721,3.1393,3463.5,3463.4,35.0]
[1735162574865,2.30987,3463.4,3463.2,3.08252649]
[1735162575071,2.30993,3463.3,3463.2,3.08252649]
[1735162575369,0.1739421,3463.7,3463.2,38.39077914]
[1735162575563,0.1739421,3463.7,3463.3,3.25235006]
[1735162575790,0.1739421,3463.7,3463.5,0.55]
[1735162576333,0.1739421,3463.7,3463.6,39.00907933]
[1735162576629,0.1739421,3463.7,3463.6,36.3356]
[1735162576819,0.1739421,3463.7,3463.6,41.85536564]
[1735162579542,0.1739421,3463.7,3463.6,47.16509564]
[1735162580334,0.1739421,3463.7,3463.6,44.85536564]
[1735162580543,0.1739421,3463.7,3463.6,42.18188631]
[1735162580838,0.1739421,3463.7,3463.6,39.18188631]
[1735162581797,0.1739421,3463.7,3463.6,41.49161631]
[1735162582140,2.30871,3465.2,3463.7,2.7856]
[1735162582289,1.19696223,3465.6,3465.2,0.55]
[1735162582490,1.19696223,3465.6,3465.3,0.7856]
[1735162582491,3.50537223,3465.6,3465.3,0.7856]
[1735162582743,3.50537223,3465.6,3465.4,35.0]
[1735162583686,1.19696223,3465.6,3465.4,35.54520527]
[1735162583853,1.14696223,3465.6,3465.4,35.54520527]
[1735162584256,4.10134042,3465.8,3465.4,35.54520527]
[1735162584257,2.30829,3465.8,3465.4,35.54520527]
[1735162584878,2.30842,3465.6,3465.4,35.0]
[1735162585283,2.30846,3465.5,3465.4,35.0]
[1735162585434,2.30881,3465.0,3464.3,0.7856]
[1735162585634,2.30889,3464.9,3464.3,0.7856]
[1735162585884,2.30895,3464.8,3464.4,0.64590793]
[1735162586091,2.309,3464.7,3464.4,0.64590793]
[1735162586254,2.309,3464.7,3464.2,2.67347933]
[1735162586582,0.7544,3465.4,3464.2,2.67347933]
[1735162586782,2.30907,3464.6,3464.0,0.7856]
[1735162587283,2.30907,3464.6,3464.1,0.55]
[1735162589198,0.7544,3464.7,3464.1,0.55]
[1735162589339,2.30893,3464.9,3464.2,2.67347933]
[1735162589689,2.30893,3464.9,3464.3,0.95090793]
[1735162590038,0.7816,3465.1,3464.3,0.55]
[1735162590277,0.7816,3465.1,3464.1,0.55]
[1735162590458,2.3092,3464.4,3464.1,0.55]
[1735162590828,2.30942,3464.1,3463.6,3.0]
[1735162591082,2.30942,3464.1,3463.6,3.64858793]
[1735162591234,2.30942,3464.1,3463.6,0.64858793]
[1735162592079,2.30942,3464.1,3463.7,0.55]
[1735162594617,0.7816,3464.3,3463.7,0.55]
[1735162594789,3.09086,3464.3,3463.7,0.55]
[1735162594986,3.09086,3464.3,3463.8,0.38720673]
[1735162595494,2.30901,3464.7,3464.1,0.55]
[1735162595653,0.7816,3464.9,3464.1,0.55]
[1735162595983,2.30921,3464.4,3464.1,0.55]
[1735162596136,2.30921,3464.4,3464.1,0.99230861]
[1735162599187,2.30907,3464.6,3464.1,0.99230861]
[1735162599804,2.30914,3464.5,3464.1,0.99230861]
[1735162600300,2.30921,3464.4,3464.1,0.55]
[1735162601000,2.30942,3464.1,3463.8,0.55]
[1735162603734,2.30906,3464.6,3463.8,0.55]
[1735162603893,2.30927,3464.3,3463.8,0.55]
[1735162605313,2.30933,3464.2,3463.8,0.55]
[1735162606110,2.30933,3464.2,3463.8,0.95358793]
[1735162607424,2.3092,3464.4,3463.8,0.95358793]
[1735162607923,2.30904,3464.7,3463.8,0.95358793]
[1735162607924,2.3093,3464.3,3463.8,0.95358793]
[1735162608074,2.3093,3464.3,3463.8,0.55]
[1735162609351,0.7816,3464.8,3463.7,0.8124]
[1735162609643,0.7686,3464.3,3463.2,3.08252649]
[1735162609950,2.30993,3463.3,3463.2,3.08252649]
[1735162610107,2.31001,3463.2,3463.0,1.20907075]
[1735162610645,2.31006,3463.2,3462.8,5.07286215]
[1735162610936,2.31006,3463.2,3462.8,6.02885691]
[1735162611327,2.30987,3463.4,3462.8,6.02885691]
[1735162611945,2.30987,3463.4,3462.8,4.81978616]
[1735162612539,0.7686,3463.8,3462.8,4.81978616]
[1735162612698,2.30969,3463.7,3463.3,0.784]
[1735162612895,3.51060676,3464.0,3463.4,0.55]
[1735162613089,1.20107676,3464.0,3463.4,0.55]
[1735162614429,2.30997,3463.3,3462.9,0.784]
[1735162615717,0.7686,3463.8,3462.9,0.784]
[1735162615924,2.30982,3463.5,3462.9,0.784]
[1735162616140,2.30982,3463.5,3463.0,0.38637914]
[1735162616951,0.7686,3463.8,3462.9,0.784]
[1735162617158,2.30987,3463.4,3462.9,0.55]
[1735162617455,2.30974,3463.6,3462.9,0.55]
[1735162617745,3.0782,3463.8,3462.9,3.22347933]
[1735162618721,2.3096,3463.8,3462.9,3.22347933]
[1735162618923,2.30969,3463.7,3463.0,0.70872707]
[1735162619222,2.30969,3463.7,3463.1,0.55]
[1735162620337,0.7686,3464.1,3463.3,0.55]
[1735162620338,2.30953,3463.9,3463.3,0.55]
[1735162620742,1.20107676,3464.3,3463.3,0.55]
[1735162620743,1.20107676,3464.3,3463.7,2.67347933]
[1735162620946,1.20107676,3464.3,3464.0,0.55]
[1735162621261,1.20107676,3464.3,3464.1,0.18802]
[1735162621410,1.20107676,3464.3,3463.9,0.7802]
[1735162621605,3.51034676,3464.3,3463.9,0.7802]
[1735162622250,0.8211,3464.2,3463.3,1.20907075]
[1735162622455,0.8211,3464.5,3463.6,0.55]
[1735162622623,2.30911,3464.6,3463.8,0.7802]
[1735162623026,2.02217676,3465.1,3463.9,3.57886509]
[1735162623209,4.33091676,3465.1,3464.1,0.55]
[1735162623762,1.20107676,3464.9,3464.1,0.55]
[1735162623941,1.20107676,3464.9,3464.3,0.55]
[1735162624513,1.20107676,3464.9,3464.4,0.7802]
[1735162625258,2.30874,3465.1,3464.4,0.7802]
[1735162628727,2.30883,3465.0,3464.4,0.7802]
[1735162629408,2.02217676,3465.4,3464.4,0.7802]
[1735162629603,4.61772,3464.9,3463.7,9.6341]
[1735162629850,2.30917,3464.5,3463.4,0.8141]
[1735162630039,3.0,3465.1,3463.4,0.8141]
[1735162630241,2.69012272,3465.3,3463.3,2.4181415]
[1735162630242,2.30966,3463.7,3463.3,2.4181415]
[1735162630732,3.08993,3463.6,3463.5,6.87e-06]
[1735162630948,4.19723693,3463.6,3463.5,6.87e-06]
[1735162631513,2.31,3463.2,3463.1,1.57888837]
[1735162631743,5.31,3463.2,3463.1,1.57888837]
[1735162632061,5.31,3463.2,3462.0,2.67347933]
[1735162632062,2.31,3463.2,3462.6,0.8141]
[1735162632207,2.30986,3463.5,3462.6,3.48757933]
[1735162632410,2.30986,3463.5,3462.7,0.34875793]
[1735162634857,2.57325042,3463.8,3462.7,0.34875793]
[1735162634858,4.29087676,3463.8,3462.7,0.34875793]
[1735162635161,2.30988,3463.4,3462.7,0.55]
[1735162635307,4.29087676,3463.8,3462.7,0.55]
[1735162635511,2.30987,3463.4,3462.7,0.55]
[1735162639254,2.30987,3463.4,3462.8,35.0]
[1735162639761,3.09033,3463.1,3462.8,35.0]
[1735162640356,0.7802,3463.1,3462.8,35.0]
[1735162640527,2.3102,3462.9,3462.8,35.0]
[1735162641358,0.7802,3463.1,3462.8,35.0]
[1735162641563,2.31006,3463.2,3462.8,35.0]
[1735162641915,2.30993,3463.3,3462.8,35.0]
[1735162642120,2.31014,3463.0,3462.8,35.0]
[1735162642520,1.98127676,3463.4,3462.8,35.0]
[1735162643218,4.29114676,3463.4,3462.8,35.0]
[1735162643567,3.09007,3463.4,3462.8,35.0]
[1735162646158,2.30987,3463.4,3462.8,35.0]
[1735162646357,2.30987,3463.4,3462.9,0.8141]
[1735162647255,2.30974,3463.6,3462.9,0.8141]
[1735162647476,2.30974,3463.6,3463.0,0.02887422]
[1735162648190,1.20107676,3463.8,3463.3,0.8141]
[1735162648347,1.20107676,3463.8,3463.3,3.12402]
[1735162648542,1.20107676,3463.8,3463.5,2.67347933]
[1735162648742,1.20107676,3463.8,3463.6,35.57974993]
[1735162648974,2.3907339,3464.1,3463.6,35.57974993]
[1735162648975,1.20107676,3464.1,3463.6,35.57974993]
[1735162649186,1.20107676,3464.1,3463.7,0.8141]
[1735162649358,1.20107676,3464.1,3463.8,2.67347933]
[1735162649559,1.20107676,3464.1,3463.9,3.0]
[1735162649787,1.20107676,3464.1,3464.0,35.0]
[1735162650286,2.30903,3464.7,3464.0,35.0]
[1735162651190,3.50995676,3464.9,3464.0,35.0]
[1735162651764,2.30888,3464.9,3464.0,35.0]
[1735162653915,2.30907,3464.6,3464.0,35.0]
[1735162654285,2.30914,3464.5,3464.0,35.0]
[1735162656304,2.3088,3465.0,3464.0,35.0]
[1735162656470,2.30901,3464.7,3464.0,35.0]
[1735162656870,2.30907,3464.6,3464.0,35.0]
[1735162657717,0.42900768,3464.9,3464.1,0.02886435]
[1735162657718,2.30894,3464.8,3464.1,0.02886435]
[1735162658016,2.30894,3464.8,3463.7,0.7693]
[1735162658310,2.30894,3464.8,3464.2,35.0]
[1735162658686,2.30878,3465.1,3464.4,0.7693]
[1735162660019,1.20107676,3465.2,3464.4,0.7693]
[1735162660214,2.30882,3465.0,3464.4,0.7693]
[1735162661907,2.30868,3465.2,3464.4,0.7693]
[1735162662077,2.30868,3465.2,3464.5,35.0]
[1735162662279,2.30874,3465.1,3464.5,35.0]
[1735162662804,3.50959676,3465.5,3464.5,37.84628631]
[1735162662972,3.50959676,3465.5,3464.6,0.7693]
[1735162663825,3.50959676,3465.5,3464.7,35.0]
[1735162663977,3.50959676,3465.5,3464.8,0.7693]
[1735162664678,1.20107676,3465.5,3464.9,35.0]
[1735162665016,1.20107676,3465.5,3465.1,0.8261]
[1735162665521,0.57713984,3465.6,3465.1,0.8261]
[1735162665825,1.20107676,3465.9,3465.2,35.02885491]
[1735162665977,1.20107676,3465.9,3465.2,35.0]
[1735162666178,1.20107676,3465.9,3465.3,0.8261]
[1735162666417,1.20107676,3465.9,3465.5,3.8261]
[1735162667099,2.30793,3466.3,3465.5,3.8261]
[1735162667919,1.20107676,3466.4,3465.5,0.8261]
[1735162668396,2.3082,3465.9,3465.5,0.8261]
[1735162668596,2.308,3466.2,3465.5,0.8261]
[1735162669045,0.00288,3466.5,3465.6,1.3761]
[1735162669194,0.00288,3466.5,3465.9,0.8261]
[1735162669640,0.00288,3466.5,3466.0,35.0]
[1735162670328,0.00288,3466.5,3466.3,1.3761]
[1735162670604,0.00288,3466.5,3466.4,3.68396]
[1735162670798,0.00288,3466.5,3466.4,39.61970393]
[1735162671754,0.00288,3466.5,3466.4,36.76184393]
[1735162672042,0.00288,3466.5,3466.4,37.31184393]
[1735162674369,0.00288,3466.5,3466.4,36.76184393]
[1735162675841,0.00288,3466.5,3466.4,37.31184393]
[1735162677054,0.00288,3466.5,3466.4,37.30184393]
[1735162679844,0.00288,3466.5,3466.4,40.30184393]
[1735162680839,0.00288,3466.5,3466.4,35.0]
[1735162681509,0.00288,3466.5,3466.4,38.45997933]
[1735162681712,0.00288,3466.5,3466.4,41.45997933]
[1735162682728,0.00288,3466.5,3466.4,44.31783933]
[1735162683725,0.00288,3466.5,3466.4,42.00997933]
[1735162684043,0.00288,3466.5,3466.4,41.45997933]
[1735162686304,0.00288,3466.5,3466.4,42.00997933]
[1735162686512,0.00288,3466.5,3466.4,44.31783933]
[1735162697760,0.00288,3466.5,3466.4,53.13783933]
[1735162698876,0.00288,3466.5,3466.4,44.6065]
[1735162699058,2.31068,3466.5,3466.4,35.0]
[1735162699268,2.30794,3466.3,3465.5,2.67347933]
[1735162699569,2.30803,3466.2,3465.5,2.67347933]
[1735162699773,3.556772,3466.5,3465.7,35.0]
[1735162699942,2.30806,3466.2,3465.7,35.0]
[1735162700875,0.78708,3466.5,3465.9,2.67347933]
[1735162701074,0.78708,3466.5,3466.0,2.84628631]
[1735162701675,0.00288,3466.5,3466.0,4.303]
[1735162701877,0.00288,3466.5,3466.4,35.0]
[1735162710065,0.00288,3466.5,3466.4,35.55]
[1735162710271,0.00288,3466.5,3466.4,41.61056]
[1735162712732,0.00288,3466.5,3466.4,44.10772436]
[1735162715844,0.00288,3466.5,3466.4,55.77401067]
[1735162716344,0.00288,3466.5,3466.4,53.46615067]
[1735162717789,0.00288,3466.5,3466.4,55.77401067]
[1735162719999,0.00288,3466.5,3466.4,56.98213693]
[1735162723169,0.00288,3466.5,3466.4,55.77401067]
[1735162724685,0.00288,3466.5,3466.4,51.62749]
[1735162724844,0.1739421,3467.2,3467.1,5.76757933]
[1735162725047,0.1739421,3467.2,3467.1,9.89433726]
[1735162725453,0.1739421,3467.2,3467.1,44.89433726]
[1735162727891,0.1739421,3467.2,3467.1,55.71433726]
[1735162728056,0.0739421,3467.2,3467.1,55.71433726]
[1735162728376,0.0739421,3467.2,3467.1,46.89433726]
[1735162729649,0.0739421,3467.2,3467.1,49.60010776]
[1735162729849,0.0739421,3467.2,3467.1,48.59853725]
[1735162730361,0.0739421,3467.2,3467.1,49.18071183]
[1735162731178,0.0739421,3467.2,3467.1,45.47651184]
[1735162732149,0.0739421,3467.2,3467.1,47.47651184]
[1735162733482,0.0739421,3467.2,3467.1,49.97094489]
[1735162733884,0.0739421,3467.2,3467.1,58.79094489]
[1735162734056,2.1e-06,3467.2,3467.1,58.79094489]
[1735162735450,2.1e-06,3467.2,3467.1,59.04094489]
[1735162736734,2.1e-06,3467.2,3467.1,60.24907115]
[1735162737833,2.1e-06,3467.2,3467.1,60.3913158]
[1735162738143,0.812,3468.5,3467.8,0.7867]
[1735162738322,0.812,3468.5,3468.4,6.22347933]
[1735162738636,1.20107676,3469.1,3468.5,6.3367]
[1735162738831,1.20107676,3469.1,3469.0,41.22347933]
[1735162739273,1.37723461,3469.2,3469.1,16.12607]
[1735162739556,2.3907339,3469.4,3469.3,2.30594]
[1735162739762,2.3907339,3469.4,3469.3,8.10015893]
[1735162739963,2.3907339,3469.4,3469.3,40.79421893]
[1735162740289,0.8316,3469.7,3469.3,35.55]
[1735162740600,0.8316,3469.9,3468.1,3.0]
[1735162740821,2.30586,3469.5,3468.5,3.0]
[1735162741137,0.8316,3469.4,3468.6,35.0]
[1735162741852,0.8316,3469.4,3468.6,37.84628631]
[1735162742017,0.8316,3469.4,3468.6,40.15267631]
[1735162742419,0.8316,3469.4,3468.7,0.55]
[1735162742918,0.8316,3469.4,3468.6,0.55]
[1735162743124,0.8316,3469.4,3468.8,35.0]
[1735162744923,0.8316,3469.2,3468.8,35.0]
[1735162745456,0.8316,3468.9,3468.8,35.0]
[1735162745638,2.30599,3469.3,3467.8,2.93179577]
[1735162745844,0.8316,3468.7,3467.8,2.93179577]
[1735162746026,0.8316,3468.7,3467.9,0.68134014]
[1735162746211,0.8316,3468.7,3468.0,35.0]
[1735162746609,0.8316,3468.7,3468.1,3.0]
[1735162746812,0.8316,3468.7,3468.0,3.0]
[1735162747065,0.8316,3468.7,3468.1,0.55]
[1735162747231,0.8316,3468.7,3468.2,35.0]
[1735162747964,0.8316,3468.7,3468.3,0.02882892]
[1735162748130,0.8316,3468.7,3468.2,2.84628631]
[1735162748327,0.8316,3469.4,3468.4,3.55]
[1735162748518,0.8316,3469.4,3469.1,35.0]
[1735162752278,3.13748,3469.4,3469.1,35.0]
[1735162752441,0.8316,3469.3,3469.1,35.0]
[1735162753670,0.8316,3469.2,3469.1,35.0]
[1735162753880,2.67347933,3470.1,3468.6,0.2488]
[1735162753881,2.30567,3469.7,3468.6,0.2488]
[1735162754180,0.8316,3468.7,3468.6,0.2488]
[1735162757773,3.13793,3468.7,3468.6,0.2488]
[1735162757976,3.05933,3468.7,3468.6,0.2488]
[1735162758147,3.595877,3468.7,3468.6,0.2488]
[1735162758879,0.753,3468.7,3468.6,35.2488]
[1735162759169,3.05933,3468.7,3468.6,35.2488]
[1735162760856,3.05933,3468.7,3468.6,0.2488]
[1735162762872,3.05933,3468.7,3468.6,35.2488]
[1735162767692,3.05933,3468.7,3468.6,0.2488]
[1735162767984,3.595881,3468.7,3468.6,0.2488]
[1735162769684,4.79747491,3468.7,3468.6,0.2488]
[1735162770565,2.307,3467.7,3467.3,35.0]
[1735162770862,0.754,3467.7,3467.3,35.0]
[1735162771551,3.06104,3467.7,3467.3,35.0]
[1735162772697,0.754,3467.7,3467.3,35.0]
[1735162772853,0.754,3467.7,3467.3,37.84628631]